[Event "GrandPrix_29.05"]
[Site "Chess.com"]
[Date "2020.05.29"]
[Round "8"]
[White "v-kazakouski"]
[Black "Pultis"]
[Result "1/2-1/2"]
[WhiteElo "2382"]
[BlackElo "2272"]
[TimeControl "600+2"]
[EndTime "13:06:30 PDT"]
[Termination "Game drawn by repetition"]

1. Nf3 {[%clk 0:10:00]} 1... Nf6 {[%clk 0:09:57.7]} 2. c4 {[%clk 0:09:59.3]}
2... c6 {[%clk 0:09:54.8]} 3. g3 {[%clk 0:09:57.4]} 3... d5 {[%clk 0:09:54.1]}
4. Bg2 {[%clk 0:09:57]} 4... dxc4 {[%clk 0:09:54.8]} 5. O-O {[%clk 0:09:56.3]}
5... Nbd7 {[%clk 0:09:48]} 6. Na3 {[%clk 0:09:55.8]} 6... Nb6 {[%clk 0:09:47.6]}
7. Qc2 {[%clk 0:09:55.4]} 7... Qd5 {[%clk 0:09:42.5]} 8. Ne1 {[%clk 0:09:49.6]}
8... Qf5 {[%clk 0:09:01.1]} 9. e4 {[%clk 0:09:37.6]} 9... Qh5 {[%clk 0:08:56.8]}
10. Nxc4 {[%clk 0:09:25.9]} 10... e5 {[%clk 0:07:44]} 11. b3 {[%clk 0:07:38.9]}
11... Nxc4 {[%clk 0:06:39.5]} 12. bxc4 {[%clk 0:06:55.4]} 12... Bg4 {[%clk
0:06:23.8]} 13. f3 {[%clk 0:06:07.3]} 13... Bc5+ {[%clk 0:05:25.1]} 14. Kh1
{[%clk 0:06:06.8]} 14... Be6 {[%clk 0:05:27]} 15. Nd3 {[%clk 0:05:59.5]} 15...
Bd4 {[%clk 0:05:07.3]} 16. Rb1 {[%clk 0:05:58.9]} 16... Rd8 {[%clk 0:05:08.8]}
17. Ba3 {[%clk 0:04:55.9]} 17... b6 {[%clk 0:03:09.6]} 18. Qa4 {[%clk
0:04:18.6]} 18... Rc8 {[%clk 0:02:15.3]} 19. Bd6 {[%clk 0:02:12.2]} 19... Nd7
{[%clk 0:01:12.1]} 20. Rfc1 {[%clk 0:01:59.2]} 20... Qg6 {[%clk 0:01:05.7]} 21.
c5 {[%clk 0:01:14.5]} 21... b5 {[%clk 0:01:04.2]} 22. Qa6 {[%clk 0:01:12.7]}
22... Rd8 {[%clk 0:00:18.4]} 23. Qxc6 {[%clk 0:01:11.4]} 23... Bc4 {[%clk
0:00:19.9]} 24. Nb4 {[%clk 0:00:56.8]} 24... Bxc5 {[%clk 0:00:15.9]} 25. Bxc5
{[%clk 0:00:43.1]} 25... Qxc6 {[%clk 0:00:17.8]} 26. Nxc6 {[%clk 0:00:44.3]}
26... Rc8 {[%clk 0:00:19.5]} 27. Nxa7 {[%clk 0:00:28.3]} 27... Rxc5 {[%clk
0:00:19.8]} 28. Nxb5 {[%clk 0:00:27.5]} 28... O-O {[%clk 0:00:15.4]} 29. Nd6
{[%clk 0:00:23.4]} 29... Bxa2 {[%clk 0:00:15.8]} 30. Rxc5 {[%clk 0:00:22]} 30...
Nxc5 {[%clk 0:00:17.7]} 31. Rb5 {[%clk 0:00:22.2]} 31... Ne6 {[%clk 0:00:15.8]}
32. Ra5 {[%clk 0:00:13.8]} 32... Bb3 {[%clk 0:00:16.4]} 33. Rxe5 {[%clk
0:00:13.1]} 33... Rd8 {[%clk 0:00:17.8]} 34. Rb5 {[%clk 0:00:13.5]} 34... Rxd6
{[%clk 0:00:17.5]} 35. Rxb3 {[%clk 0:00:12.9]} 35... Rxd2 {[%clk 0:00:19]} 36.
Rb8+ {[%clk 0:00:09.3]} 36... Rd8 {[%clk 0:00:20]} 37. Rxd8+ {[%clk 0:00:10.4]}
37... Nxd8 {[%clk 0:00:21.9]} 38. Kg1 {[%clk 0:00:12.3]} 38... f6 {[%clk
0:00:21.4]} 39. Kf2 {[%clk 0:00:12.8]} 39... Kf7 {[%clk 0:00:23]} 40. f4 {[%clk
0:00:14.5]} 40... Ke7 {[%clk 0:00:24.2]} 41. Ke3 {[%clk 0:00:15.6]} 41... Ne6
{[%clk 0:00:24.8]} 42. Bf1 {[%clk 0:00:16.5]} 42... Kd6 {[%clk 0:00:19.7]} 43.
Bc4 {[%clk 0:00:17.4]} 43... Nf8 {[%clk 0:00:17.3]} 44. Bg8 {[%clk 0:00:17.4]}
44... h6 {[%clk 0:00:17.6]} 45. Kf3 {[%clk 0:00:18.1]} 45... h5 {[%clk
0:00:12.8]} 46. Bf7 {[%clk 0:00:13.9]} 46... g6 {[%clk 0:00:14]} 47. f5 {[%clk
0:00:15.1]} 47... gxf5 {[%clk 0:00:15.5]} 48. exf5 {[%clk 0:00:16.2]} 48... Ke5
{[%clk 0:00:17]} 49. g4 {[%clk 0:00:12.6]} 49... h4 {[%clk 0:00:10.5]} 50. Bg8
{[%clk 0:00:10.2]} 50... Nd7 {[%clk 0:00:08.9]} 51. Be6 {[%clk 0:00:07.2]} 51...
Nc5 {[%clk 0:00:09.5]} 52. h3 {[%clk 0:00:05.6]} 52... Ne4 {[%clk 0:00:09.7]}
53. Ba2 {[%clk 0:00:05.1]} 53... Ng5+ {[%clk 0:00:11.6]} 54. Kg2 {[%clk
0:00:06.2]} 54... Kf4 {[%clk 0:00:13.5]} 55. Bd5 {[%clk 0:00:07.2]} 55... Ke3
{[%clk 0:00:14]} 56. Bc6 {[%clk 0:00:07.9]} 56... Nf7 {[%clk 0:00:14.7]} 57. Bd5
{[%clk 0:00:09.2]} 57... Ne5 {[%clk 0:00:16.6]} 58. g5 {[%clk 0:00:09.5]} 58...
fxg5 {[%clk 0:00:14.8]} 59. f6 {[%clk 0:00:11.4]} 59... Kf4 {[%clk 0:00:13.2]}
60. f7 {[%clk 0:00:11.1]} 60... Ng6 {[%clk 0:00:14.6]} 61. Bc4 {[%clk
0:00:10.9]} 61... Ke4 {[%clk 0:00:13.7]} 62. Bb3 {[%clk 0:00:11.5]} 62... Ke5
{[%clk 0:00:11.6]} 63. Kf3 {[%clk 0:00:12.5]} 63... Kf6 {[%clk 0:00:07.1]} 64.
Ke4 {[%clk 0:00:13.6]} 64... Nf8 {[%clk 0:00:03.8]} 65. Bc4 {[%clk 0:00:13.1]}
65... Nd7 {[%clk 0:00:04.8]} 66. Ba2 {[%clk 0:00:12.2]} 66... Nf8 {[%clk
0:00:05]} 67. Kf3 {[%clk 0:00:13]} 67... Kf5 {[%clk 0:00:05.2]} 68. Bb3 {[%clk
0:00:13]} 68... Nd7 {[%clk 0:00:05.8]} 69. Bc2+ {[%clk 0:00:13.3]} 69... Kf6
{[%clk 0:00:07.1]} 70. Bb3 {[%clk 0:00:15.2]} 70... Ne5+ {[%clk 0:00:08.1]} 71.
Ke4 {[%clk 0:00:15]} 71... Ng6 {[%clk 0:00:09.2]} 72. Kf3 {[%clk 0:00:14.4]}
72... Ne5+ {[%clk 0:00:07.9]} 73. Ke4 {[%clk 0:00:15.4]} 73... Nd7 {[%clk
0:00:07.7]} 74. Kf3 {[%clk 0:00:15.9]} 74... Kg6 {[%clk 0:00:09.1]} 75. Ke4
{[%clk 0:00:14.1]} 75... Kf6 {[%clk 0:00:03.3]} 76. Kf3 {[%clk 0:00:14.5]}
1/2-1/2

[Event "GrandPrix_29.05"]
[Site "Chess.com"]
[Date "2020.05.29"]
[Round "8"]
[White "Durarbayli"]
[Black "Vuk2000"]
[Result "1/2-1/2"]
[WhiteElo "2535"]
[BlackElo "2380"]
[TimeControl "600+2"]
[EndTime "13:06:36 PDT"]
[Termination "Game drawn by repetition"]

1. e4 {[%clk 0:10:01.9]} 1... e6 {[%clk 0:10:00]} 2. d4 {[%clk 0:10:00.4]} 2...
d5 {[%clk 0:10:00.6]} 3. e5 {[%clk 0:09:59.6]} 3... c5 {[%clk 0:10:01.2]} 4. c3
{[%clk 0:10:01]} 4... Nc6 {[%clk 0:10:02]} 5. Nf3 {[%clk 0:10:02]} 5... Qb6
{[%clk 0:10:02.4]} 6. Be2 {[%clk 0:10:03.3]} 6... cxd4 {[%clk 0:09:44.6]} 7.
cxd4 {[%clk 0:10:05.2]} 7... Bb4+ {[%clk 0:09:44.3]} 8. Nc3 {[%clk 0:09:58.5]}
8... Qa5 {[%clk 0:09:24.1]} 9. O-O {[%clk 0:09:15]} 9... Bxc3 {[%clk 0:08:58.1]}
10. bxc3 {[%clk 0:09:16.9]} 10... Nge7 {[%clk 0:08:55.3]} 11. Qb3 {[%clk
0:07:11.2]} 11... b6 {[%clk 0:07:14.8]} 12. Ba3 {[%clk 0:07:10.6]} 12... Ba6
{[%clk 0:06:47.7]} 13. Bb4 {[%clk 0:07:10]} 13... Bc4 {[%clk 0:06:40.9]} 14.
Bxc4 {[%clk 0:06:51.7]} 14... dxc4 {[%clk 0:06:32.6]} 15. Qxc4 {[%clk
0:06:53.6]} 15... Qd5 {[%clk 0:06:13.5]} 16. Qd3 {[%clk 0:06:02.2]} 16... Nxb4
{[%clk 0:05:49.1]} 17. cxb4 {[%clk 0:06:04.1]} 17... O-O {[%clk 0:05:26.5]} 18.
Rfc1 {[%clk 0:06:04]} 18... a5 {[%clk 0:05:15]} 19. b5 {[%clk 0:05:23.5]} 19...
a4 {[%clk 0:04:54.3]} 20. Rc7 {[%clk 0:05:19.7]} 20... Qd8 {[%clk 0:04:35.3]}
21. Qc4 {[%clk 0:04:45.9]} 21... Nd5 {[%clk 0:04:21.9]} 22. Rc6 {[%clk
0:04:44.5]} 22... a3 {[%clk 0:03:41]} 23. Rb1 {[%clk 0:03:51.8]} 23... Ra5
{[%clk 0:03:35]} 24. h3 {[%clk 0:03:23.2]} 24... Qa8 {[%clk 0:03:19.4]} 25. Qc2
{[%clk 0:03:02.3]} 25... h6 {[%clk 0:03:15.4]} 26. Rc4 {[%clk 0:03:02.3]} 26...
Qe8 {[%clk 0:03:11.9]} 27. Qb3 {[%clk 0:02:58.8]} 27... Qe7 {[%clk 0:02:27.7]}
28. Rbc1 {[%clk 0:02:37.6]} 28... Rd8 {[%clk 0:02:21.7]} 29. Kh2 {[%clk
0:02:32.1]} 29... Qd7 {[%clk 0:01:47.3]} 30. Rc6 {[%clk 0:02:30.5]} 30... Rda8
{[%clk 0:01:48.4]} 31. R1c4 {[%clk 0:02:26.5]} 31... Qe8 {[%clk 0:01:26.7]} 32.
Nd2 {[%clk 0:02:21.1]} 32... Qd8 {[%clk 0:01:24.2]} 33. Nf3 {[%clk 0:02:01.6]}
33... g6 {[%clk 0:01:09.5]} 34. g3 {[%clk 0:01:55.8]} 34... Kg7 {[%clk 0:01:10]}
35. h4 {[%clk 0:01:49.7]} 35... Qd7 {[%clk 0:01:02.1]} 36. Nd2 {[%clk
0:01:26.4]} 36... Qa7 {[%clk 0:00:48.8]} 37. Ne4 {[%clk 0:01:24.4]} 37... Ra4
{[%clk 0:00:49.5]} 38. Nd6 {[%clk 0:01:13.7]} 38... Rxc4 {[%clk 0:00:47.1]} 39.
Rxc4 {[%clk 0:01:14.5]} 39... Qa5 {[%clk 0:00:38.9]} 40. Qf3 {[%clk 0:01:05.8]}
40... Qa7 {[%clk 0:00:38.4]} 41. h5 {[%clk 0:00:41]} 41... Qe7 {[%clk
0:00:38.4]} 42. Kg2 {[%clk 0:00:26.1]} 42... Qd7 {[%clk 0:00:21.6]} 43. Rc6
{[%clk 0:00:18.5]} 43... Rf8 {[%clk 0:00:07.3]} 44. hxg6 {[%clk 0:00:15.4]}
44... fxg6 {[%clk 0:00:07.2]} 45. Qxa3 {[%clk 0:00:16.8]} 45... Qe7 {[%clk
0:00:06]} 46. Rc2 {[%clk 0:00:10.4]} 46... Qg5 {[%clk 0:00:07.4]} 47. Kf1 {[%clk
0:00:09.6]} 47... Ne3+ {[%clk 0:00:06.7]} 48. Ke2 {[%clk 0:00:04.2]} 48... Nxc2
{[%clk 0:00:07.5]} 49. Qc3 {[%clk 0:00:05]} 49... Qc1 {[%clk 0:00:05.5]} 50. Ne4
{[%clk 0:00:04.5]} 50... Qe1+ {[%clk 0:00:03.6]} 51. Qxe1 {[%clk 0:00:04.8]}
51... Nxe1 {[%clk 0:00:05.5]} 52. Kxe1 {[%clk 0:00:06.7]} 52... Ra8 {[%clk
0:00:06.6]} 53. Nc3 {[%clk 0:00:07.9]} 53... h5 {[%clk 0:00:06]} 54. f4 {[%clk
0:00:07.8]} 54... Kh6 {[%clk 0:00:07.2]} 55. a4 {[%clk 0:00:04.6]} 55... g5
{[%clk 0:00:07.5]} 56. fxg5+ {[%clk 0:00:05.9]} 56... Kxg5 {[%clk 0:00:09.4]}
57. Kf2 {[%clk 0:00:07.5]} 57... Kf5 {[%clk 0:00:08.3]} 58. Kf3 {[%clk
0:00:06.5]} 58... Rc8 {[%clk 0:00:07.9]} 59. Nd1 {[%clk 0:00:06.5]} 59... Rc1
{[%clk 0:00:07.1]} 60. Ne3+ {[%clk 0:00:07.6]} 60... Kg5 {[%clk 0:00:07.9]} 61.
d5 {[%clk 0:00:09.1]} 61... exd5 {[%clk 0:00:06.7]} 62. Nxd5 {[%clk 0:00:11]}
62... Kf5 {[%clk 0:00:06.4]} 63. Nxb6 {[%clk 0:00:12]} 63... Rc3+ {[%clk
0:00:07.4]} 64. Kg2 {[%clk 0:00:10.8]} 64... Ra3 {[%clk 0:00:07.3]} 65. Kh3
{[%clk 0:00:11.3]} 65... Ke6 {[%clk 0:00:03.7]} 66. Kh4 {[%clk 0:00:11.8]} 66...
Kf5 {[%clk 0:00:04]} 67. Kh3 {[%clk 0:00:06.3]} 67... Ra1 {[%clk 0:00:04.3]} 68.
Kg2 {[%clk 0:00:04]} 68... Ra2+ {[%clk 0:00:06.2]} 69. Kh3 {[%clk 0:00:04.7]}
69... Ra1 {[%clk 0:00:04.1]} 70. Kg2 {[%clk 0:00:05.3]} 70... Ra2+ {[%clk
0:00:05.8]} 71. Kh3 {[%clk 0:00:05.9]} 71... Ra1 {[%clk 0:00:04.6]} 1/2-1/2

[Event "GrandPrix_29.05"]
[Site "Chess.com"]
[Date "2020.05.29"]
[Round "8"]
[White "2346PL"]
[Black "Yuri202062"]
[Result "1/2-1/2"]
[WhiteElo "2090"]
[BlackElo "2011"]
[TimeControl "600+2"]
[EndTime "13:06:38 PDT"]
[Termination "Game drawn by agreement"]

1. d4 {[%clk 0:10:01.9]} 1... d5 {[%clk 0:10:00.2]} 2. Nf3 {[%clk 0:10:02.5]}
2... Nf6 {[%clk 0:10:01.1]} 3. c3 {[%clk 0:10:03.8]} 3... c5 {[%clk 0:09:56.2]}
4. e3 {[%clk 0:10:02.9]} 4... Nbd7 {[%clk 0:09:55.3]} 5. Bd3 {[%clk 0:10:03]}
5... g6 {[%clk 0:09:55.8]} 6. O-O {[%clk 0:10:03.7]} 6... Bg7 {[%clk 0:09:56.9]}
7. Nbd2 {[%clk 0:10:04.7]} 7... O-O {[%clk 0:09:57.3]} 8. Re1 {[%clk 0:10:02.6]}
8... Qc7 {[%clk 0:09:57.8]} 9. b3 {[%clk 0:10:01.1]} 9... e5 {[%clk 0:09:54.4]}
10. dxe5 {[%clk 0:10:01.6]} 10... Ng4 {[%clk 0:09:19.1]} 11. Bb2 {[%clk
0:09:55.7]} 11... Ndxe5 {[%clk 0:09:19]} 12. Be2 {[%clk 0:09:55.2]} 12... Rd8
{[%clk 0:08:21.9]} 13. h3 {[%clk 0:09:55.6]} 13... Nxf3+ {[%clk 0:08:20]} 14.
Nxf3 {[%clk 0:09:55.9]} 14... Nf6 {[%clk 0:08:18.9]} 15. Qc2 {[%clk 0:09:50.7]}
15... Bf5 {[%clk 0:08:14.8]} 16. Bd3 {[%clk 0:09:51.6]} 16... Bxd3 {[%clk
0:08:15.2]} 17. Qxd3 {[%clk 0:09:52.9]} 17... c4 {[%clk 0:08:16]} 18. Qc2 {[%clk
0:09:37.5]} 18... Ne4 {[%clk 0:08:14.6]} 19. b4 {[%clk 0:09:24]} 19... Rd7
{[%clk 0:07:31.3]} 20. Red1 {[%clk 0:09:16.4]} 20... Re8 {[%clk 0:07:26.8]} 21.
a4 {[%clk 0:09:08.6]} 21... h5 {[%clk 0:07:25.9]} 22. a5 {[%clk 0:08:08.3]}
22... g5 {[%clk 0:07:09.8]} 23. Nd4 {[%clk 0:07:46.5]} 23... Qe5 {[%clk
0:06:50.7]} 24. Qe2 {[%clk 0:07:35.9]} 24... h4 {[%clk 0:06:29.6]} 25. Qg4
{[%clk 0:07:31.2]} 25... Rd6 {[%clk 0:05:52.2]} 26. Re1 {[%clk 0:06:35.4]} 26...
Rg6 {[%clk 0:04:50]} 27. f3 {[%clk 0:06:01.4]} 27... Ng3 {[%clk 0:03:07.1]} 28.
Qd7 {[%clk 0:06:00.4]} 28... Re7 {[%clk 0:02:53.6]} 29. Qc8+ {[%clk 0:05:59.9]}
29... Kh7 {[%clk 0:02:51.5]} 30. a6 {[%clk 0:05:59.8]} 30... Rxa6 {[%clk
0:01:14.3]} 31. Rxa6 {[%clk 0:06:00.1]} 31... bxa6 {[%clk 0:01:14.9]} 32. Qxa6
{[%clk 0:05:41.3]} 32... Nf5 {[%clk 0:01:09.5]} 33. Nxf5 {[%clk 0:05:39.6]}
33... Qxf5 {[%clk 0:01:09.7]} 34. e4 {[%clk 0:03:14.5]} 34... dxe4 {[%clk
0:01:05]} 35. Qxc4 {[%clk 0:03:13.3]} 35... e3 {[%clk 0:00:38.5]} 36. Bc1 {[%clk
0:03:12]} 36... Qc2 {[%clk 0:00:18.5]} 37. Bxe3 {[%clk 0:01:52]} 37... Qxc3
{[%clk 0:00:18.8]} 38. Qxc3 {[%clk 0:01:20.4]} 38... Bxc3 {[%clk 0:00:18.9]} 39.
Re2 {[%clk 0:01:17.9]} 39... Bxb4 {[%clk 0:00:19.8]} 40. Kf1 {[%clk 0:01:18.9]}
40... Kg6 {[%clk 0:00:19.6]} 41. Kf2 {[%clk 0:01:12.7]} 41... a5 {[%clk
0:00:19.3]} 42. Rc2 {[%clk 0:01:11.6]} 42... a4 {[%clk 0:00:14.6]} 43. Rc6+
{[%clk 0:01:10.1]} 43... Kg7 {[%clk 0:00:05]} 44. Bxg5 {[%clk 0:01:07.1]} 44...
Ra7 {[%clk 0:00:04.8]} 45. Bxh4 {[%clk 0:01:02.9]} 45... a3 {[%clk 0:00:06]} 46.
Bf6+ {[%clk 0:01:04.4]} 46... Kh7 {[%clk 0:00:06.3]} 47. Ke3 {[%clk 0:00:55.5]}
47... a2 {[%clk 0:00:07]} 48. Ba1 {[%clk 0:00:56.9]} 48... Bf8 {[%clk
0:00:07.5]} 49. Rc4 {[%clk 0:00:52.3]} 49... f5 {[%clk 0:00:03.9]} 50. Kf4
{[%clk 0:00:45.8]} 50... Bg7 {[%clk 0:00:04.7]} 51. Rc1 {[%clk 0:00:47]} 51...
Rb7 {[%clk 0:00:04.2]} 52. Bxg7 {[%clk 0:00:46.4]} 52... Kxg7 {[%clk 0:00:04]}
53. Ra1 {[%clk 0:00:47.3]} 53... Rb2 {[%clk 0:00:05.1]} 54. g3 {[%clk
0:00:45.2]} 54... Rg2 {[%clk 0:00:04.2]} 55. g4 {[%clk 0:00:44.4]} 55... fxg4
{[%clk 0:00:03.8]} 56. hxg4 {[%clk 0:00:46.3]} 56... Rb2 {[%clk 0:00:04.7]} 57.
Kg5 {[%clk 0:00:39.6]} 57... Rb5+ {[%clk 0:00:05.5]} 58. Kh4 {[%clk 0:00:40.9]}
58... Ra5 {[%clk 0:00:05.9]} 59. f4 {[%clk 0:00:37.6]} 59... Kg6 {[%clk
0:00:07.1]} 60. Kg3 {[%clk 0:00:36.4]} 60... Ra4 {[%clk 0:00:07.2]} 61. Kf3
{[%clk 0:00:35.8]} 61... Kf6 {[%clk 0:00:08.4]} 62. Ke3 {[%clk 0:00:32.7]} 62...
Kg6 {[%clk 0:00:08.3]} 63. Kf3 {[%clk 0:00:31.1]} 63... Kf6 {[%clk 0:00:09.5]}
64. Kg3 {[%clk 0:00:32.1]} 64... Kg6 {[%clk 0:00:10.7]} 65. Kh4 {[%clk
0:00:31.8]} 65... Rxf4 {[%clk 0:00:09.9]} 66. Rxa2 {[%clk 0:00:32.1]} 66... Rb4
{[%clk 0:00:10.8]} 67. Ra6+ {[%clk 0:00:32.4]} 67... Kg7 {[%clk 0:00:11]} 68.
Kh5 {[%clk 0:00:33.4]} 68... Rb5+ {[%clk 0:00:10.9]} 69. g5 {[%clk 0:00:34.9]}
69... Rb7 {[%clk 0:00:11.7]} 70. Rh6 {[%clk 0:00:29.7]} 70... Rc7 {[%clk
0:00:11.8]} 71. Rg6+ {[%clk 0:00:29.6]} 71... Kh7 {[%clk 0:00:11.5]} 72. Rd6
{[%clk 0:00:20.6]} 72... Rb7 {[%clk 0:00:12.4]} 73. Kg4 {[%clk 0:00:21.9]} 73...
Kg7 {[%clk 0:00:12.3]} 74. Kf5 {[%clk 0:00:21.8]} 74... Rb5+ {[%clk 0:00:12.7]}
75. Kg4 {[%clk 0:00:21.5]} 75... Rb4+ {[%clk 0:00:14]} 76. Kh5 {[%clk
0:00:19.5]} 76... Rb7 {[%clk 0:00:14.9]} 77. Rf6 {[%clk 0:00:16.6]} 77... Ra7
{[%clk 0:00:15.8]} 1/2-1/2

[Event "GrandPrix_29.05"]
[Site "Chess.com"]
[Date "2020.05.29"]
[Round "8"]
[White "Vazgen352"]
[Black "BMOchsner"]
[Result "0-1"]
[WhiteElo "2278"]
[BlackElo "2251"]
[TimeControl "600+2"]
[EndTime "13:06:44 PDT"]
[Termination "BMOchsner won by resignation"]

1. c4 {[%clk 0:10:01]} 1... e5 {[%clk 0:09:52.3]} 2. g3 {[%clk 0:10:00.6]} 2...
Nc6 {[%clk 0:09:50.2]} 3. Bg2 {[%clk 0:10:01.6]} 3... Bc5 {[%clk 0:09:50.6]} 4.
Nc3 {[%clk 0:10:03]} 4... d6 {[%clk 0:09:49.8]} 5. d3 {[%clk 0:10:02.4]} 5... a6
{[%clk 0:09:46.1]} 6. Nf3 {[%clk 0:10:03.6]} 6... Nf6 {[%clk 0:09:11.4]} 7. O-O
{[%clk 0:10:03.3]} 7... O-O {[%clk 0:09:10]} 8. a3 {[%clk 0:10:04.5]} 8... Ba7
{[%clk 0:09:03.6]} 9. b4 {[%clk 0:10:04.7]} 9... h6 {[%clk 0:08:27.5]} 10. Bb2
{[%clk 0:10:04.2]} 10... Be6 {[%clk 0:08:21.7]} 11. Rc1 {[%clk 0:10:02.7]} 11...
Qd7 {[%clk 0:08:21.1]} 12. e3 {[%clk 0:09:54.5]} 12... Ne7 {[%clk 0:07:44.9]}
13. Ne2 {[%clk 0:09:46.1]} 13... Bh3 {[%clk 0:07:39.4]} 14. d4 {[%clk
0:09:44.5]} 14... Bxg2 {[%clk 0:07:02.8]} 15. Kxg2 {[%clk 0:09:46.4]} 15... e4
{[%clk 0:07:03.4]} 16. Nd2 {[%clk 0:09:45.8]} 16... d5 {[%clk 0:06:59.6]} 17.
cxd5 {[%clk 0:09:27.5]} 17... Nexd5 {[%clk 0:06:59.5]} 18. Nc3 {[%clk
0:09:26.7]} 18... Rfe8 {[%clk 0:06:39.2]} 19. Nc4 {[%clk 0:09:01.2]} 19... Nxc3
{[%clk 0:06:30.3]} 20. Rxc3 {[%clk 0:08:59.5]} 20... Nd5 {[%clk 0:06:28]} 21.
Rc2 {[%clk 0:08:58.9]} 21... Rad8 {[%clk 0:06:05.3]} 22. Qh5 {[%clk 0:08:45.6]}
22... c6 {[%clk 0:05:42.7]} 23. Ne5 {[%clk 0:08:20.5]} 23... Qe6 {[%clk
0:05:27]} 24. Qg4 {[%clk 0:07:59.2]} 24... Qxg4 {[%clk 0:04:19.5]} 25. Nxg4
{[%clk 0:08:01.1]} 25... f6 {[%clk 0:04:19.8]} 26. h3 {[%clk 0:08:02.5]} 26...
Bb8 {[%clk 0:04:09.7]} 27. Rb1 {[%clk 0:08:03.5]} 27... Bd6 {[%clk 0:04:07.4]}
28. Bc1 {[%clk 0:08:04.1]} 28... h5 {[%clk 0:03:46.4]} 29. Nh2 {[%clk
0:08:05.1]} 29... h4 {[%clk 0:03:47.2]} 30. g4 {[%clk 0:07:36.5]} 30... Bxh2
{[%clk 0:03:43.8]} 31. Kxh2 {[%clk 0:07:37.5]} 31... f5 {[%clk 0:03:26.7]} 32.
gxf5 {[%clk 0:07:18.7]} 32... Rf8 {[%clk 0:03:26.9]} 33. a4 {[%clk 0:07:19.6]}
33... Rxf5 {[%clk 0:03:25.9]} 34. b5 {[%clk 0:07:20.5]} 34... axb5 {[%clk
0:03:17.6]} 35. axb5 {[%clk 0:07:22.4]} 35... cxb5 {[%clk 0:03:09.9]} 36. Kg1
{[%clk 0:07:22.4]} 36... b4 {[%clk 0:03:01.9]} 37. Bd2 {[%clk 0:07:20.8]} 37...
Rd6 {[%clk 0:02:56.3]} 38. Bxb4 {[%clk 0:05:29.1]} 38... Rb6 {[%clk 0:02:54.2]}
39. Rcb2 {[%clk 0:05:28.6]} 39... Rg6+ {[%clk 0:02:47.3]} 40. Kf1 {[%clk
0:05:12.7]} 40... Nxe3+ {[%clk 0:02:43.6]} 41. Ke2 {[%clk 0:05:12.7]} 41... Nd5
{[%clk 0:02:38.1]} 42. Be1 {[%clk 0:05:12.1]} 42... b6 {[%clk 0:02:24.9]} 43.
Ra1 {[%clk 0:05:10.7]} 43... e3 {[%clk 0:02:05.5]} 44. Kd3 {[%clk 0:04:38]}
44... exf2 {[%clk 0:01:45.9]} 45. Rxf2 {[%clk 0:04:33.1]} 45... Rg3+ {[%clk
0:01:33.2]} 46. Ke4 {[%clk 0:04:03.5]} 46... Rxf2 {[%clk 0:01:33.2]} 47. Bxf2
{[%clk 0:04:04.4]} 47... Nf6+ {[%clk 0:01:28.4]} 48. Kf4 {[%clk 0:03:56.8]}
48... Rxh3 {[%clk 0:01:20]} 49. Rb1 {[%clk 0:03:44]} 49... Rd3 {[%clk
0:01:10.5]} 50. Rxb6 {[%clk 0:03:20]} 50... Nd5+ {[%clk 0:01:09.4]} 51. Ke4
{[%clk 0:03:21.4]} 51... Nxb6 {[%clk 0:01:00.9]} 52. Kxd3 {[%clk 0:03:22.4]}
52... h3 {[%clk 0:00:55.2]} 53. Bg3 {[%clk 0:03:21.7]} 53... Kf7 {[%clk
0:00:54.3]} 54. Ke4 {[%clk 0:03:22.5]} 54... Kg6 {[%clk 0:00:37.4]} 55. d5
{[%clk 0:03:05.4]} 55... Kg5 {[%clk 0:00:34.5]} 56. d6 {[%clk 0:03:03.7]} 56...
Kg4 {[%clk 0:00:34.3]} 57. Bh2 {[%clk 0:03:04.7]} 57... g5 {[%clk 0:00:30.6]}
58. Be5 {[%clk 0:02:54.6]} 58... Nd7 {[%clk 0:00:28.1]} 59. Bh2 {[%clk
0:02:55.1]} 59... Nc5+ {[%clk 0:00:21.1]} 60. Kd5 {[%clk 0:02:51.1]} 60... Nb7
{[%clk 0:00:22]} 61. Ke4 {[%clk 0:02:15.7]} 61... Nd8 {[%clk 0:00:14.1]} 62. d7
{[%clk 0:02:15.9]} 62... Nf7 {[%clk 0:00:12.1]} 63. Bc7 {[%clk 0:02:13.1]} 63...
Nd8 {[%clk 0:00:10.4]} 64. Kd5 {[%clk 0:01:25.4]} 64... Kf3 {[%clk 0:00:03]} 65.
Bxd8 {[%clk 0:01:24.7]} 65... h2 {[%clk 0:00:04.3]} 66. Bf6 {[%clk 0:01:26.2]}
66... h1=Q {[%clk 0:00:05.2]} 67. d8=Q {[%clk 0:01:27.6]} 67... Qd1+ {[%clk
0:00:06.1]} 68. Bd4 {[%clk 0:01:29.1]} 68... Qb3+ {[%clk 0:00:06.3]} 69. Ke5
{[%clk 0:01:29.6]} 69... Qb5+ {[%clk 0:00:06.7]} 70. Kf6 {[%clk 0:01:30.9]}
70... Qc6+ {[%clk 0:00:05.7]} 71. Kf5 {[%clk 0:01:28.8]} 71... Qe4+ {[%clk
0:00:05.3]} 72. Kf6 {[%clk 0:01:30.3]} 72... Qc6+ {[%clk 0:00:06.4]} 73. Kg7
{[%clk 0:01:31.7]} 73... Qe4 {[%clk 0:00:06.1]} 74. Qf6+ {[%clk 0:01:28.5]}
74... Kg4 {[%clk 0:00:06.3]} 75. Bc5 {[%clk 0:01:10.5]} 75... Qb7+ {[%clk
0:00:06.8]} 76. Be7 {[%clk 0:01:11.4]} 76... Qd5 {[%clk 0:00:06.4]} 77. Qf1
{[%clk 0:01:06.2]} 77... Qe5+ {[%clk 0:00:06]} 78. Bf6 {[%clk 0:01:07]} 78...
Qc7+ {[%clk 0:00:07.2]} 79. Kg6 {[%clk 0:01:02.2]} 79... Qc2+ {[%clk 0:00:07.4]}
80. Kh6 {[%clk 0:01:01.2]} 80... Qh2+ {[%clk 0:00:08]} 81. Kg7 {[%clk
0:01:00.3]} 81... Qc7+ {[%clk 0:00:08.8]} 82. Kg8 {[%clk 0:00:54.6]} 82... Qc8+
{[%clk 0:00:08.9]} 83. Kf7 {[%clk 0:00:54]} 83... Qc7+ {[%clk 0:00:09]} 84. Ke6
{[%clk 0:00:52.3]} 84... Qc6+ {[%clk 0:00:09.8]} 85. Ke5 {[%clk 0:00:53.1]}
85... Qc5+ {[%clk 0:00:10.2]} 86. Ke4 {[%clk 0:00:54.7]} 86... Qc6+ {[%clk
0:00:09.9]} 87. Kd4 {[%clk 0:00:54.4]} 87... Qd6+ {[%clk 0:00:10.1]} 88. Ke3
{[%clk 0:00:55.9]} 88... Qe6+ {[%clk 0:00:10.7]} 89. Kd3 {[%clk 0:00:57.2]}
89... Qa6+ {[%clk 0:00:11.4]} 0-1